[Event "Early-Titled-Tuesday-Blitz-September-12-2023"]
[Site "Chess.com"]
[Date "2023.09.12"]
[Round "1"]
[White "AndreiITrifan"]
[Black "Aleksandar-Topalov"]
[Result "1/2-1/2"]
[WhiteElo "2627"]
[BlackElo "2343"]
[TimeControl "180+1"]
[EndTime "8:08:36 PDT"]
[Termination "Game drawn - insufficient material"]

1. Nf3 {[%clk 0:03:00]} 1... e6 {[%clk 0:02:58.3]} 2. e3 {[%clk 0:02:58.1]} 2...
f5 {[%clk 0:02:57.3]} 3. b3 {[%clk 0:02:54.5]} 3... Nf6 {[%clk 0:02:56.9]} 4.
Bb2 {[%clk 0:02:54.9]} 4... Be7 {[%clk 0:02:54.2]} 5. c4 {[%clk 0:02:55]} 5...
O-O {[%clk 0:02:53.8]} 6. Nc3 {[%clk 0:02:55.3]} 6... d6 {[%clk 0:02:48.7]} 7.
d4 {[%clk 0:02:54.9]} 7... Nc6 {[%clk 0:02:45.5]} 8. Qc2 {[%clk 0:02:45]} 8...
e5 {[%clk 0:02:43.9]} 9. dxe5 {[%clk 0:02:44.8]} 9... dxe5 {[%clk 0:02:43.5]}
10. Rd1 {[%clk 0:02:44.5]} 10... Qe8 {[%clk 0:02:43.5]} 11. a3 {[%clk
0:02:44.3]} 11... e4 {[%clk 0:02:29.5]} 12. Nd4 {[%clk 0:02:42.4]} 12... Nxd4
{[%clk 0:02:28.3]} 13. Rxd4 {[%clk 0:02:43.3]} 13... c6 {[%clk 0:02:19.2]} 14.
Be2 {[%clk 0:02:30.8]} 14... Be6 {[%clk 0:02:10.8]} 15. O-O {[%clk 0:02:21.9]}
15... Qf7 {[%clk 0:02:08.8]} 16. Rfd1 {[%clk 0:02:18.1]} 16... Rfd8 {[%clk
0:01:58.1]} 17. Rxd8+ {[%clk 0:02:16.4]} 17... Rxd8 {[%clk 0:01:57.1]} 18. Rxd8+
{[%clk 0:02:16]} 18... Bxd8 {[%clk 0:01:57.3]} 19. Qd2 {[%clk 0:02:14.5]} 19...
Be7 {[%clk 0:01:49.9]} 20. Qd4 {[%clk 0:02:06.5]} 20... b6 {[%clk 0:01:40.8]}
21. g3 {[%clk 0:01:53.6]} 21... Nd7 {[%clk 0:01:25]} 22. Qd2 {[%clk 0:01:41.3]}
22... Nc5 {[%clk 0:01:17.5]} 23. Qc2 {[%clk 0:01:28.3]} 23... Bf6 {[%clk
0:01:10.8]} 24. b4 {[%clk 0:01:22.6]} 24... Nd3 {[%clk 0:01:07.9]} 25. Bxd3
{[%clk 0:01:16.9]} 25... exd3 {[%clk 0:01:08.1]} 26. Qxd3 {[%clk 0:01:17.8]}
26... Bxc4 {[%clk 0:01:07.7]} 27. Qxf5 {[%clk 0:01:16.7]} 27... Bxc3 {[%clk
0:01:04.1]} 28. Qxf7+ {[%clk 0:01:15.5]} 28... Kxf7 {[%clk 0:01:03.8]} 29. Bxc3
{[%clk 0:01:16]} 29... g5 {[%clk 0:01:01.8]} 30. f3 {[%clk 0:01:12.9]} 30... h5
{[%clk 0:01:01.7]} 31. h3 {[%clk 0:01:09.6]} 31... Be6 {[%clk 0:00:58.5]} 32. g4
{[%clk 0:01:09.2]} 32... hxg4 {[%clk 0:00:55.5]} 33. hxg4 {[%clk 0:01:10.1]}
33... Bd5 {[%clk 0:00:51.5]} 34. Kf2 {[%clk 0:01:09.3]} 34... Ke6 {[%clk
0:00:45.5]} 35. e4 {[%clk 0:01:07.4]} 35... Bb3 {[%clk 0:00:41.8]} 36. Bd4
{[%clk 0:01:02.9]} 36... Bd1 {[%clk 0:00:36.7]} 37. Ke3 {[%clk 0:01:02.7]} 37...
Kf7 {[%clk 0:00:33]} 38. Be5 {[%clk 0:01:02.4]} 38... c5 {[%clk 0:00:27.9]} 39.
Bb8 {[%clk 0:00:57.4]} 39... cxb4 {[%clk 0:00:26.3]} 40. axb4 {[%clk 0:00:58.3]}
40... a5 {[%clk 0:00:26]} 41. bxa5 {[%clk 0:00:55.5]} 41... bxa5 {[%clk
0:00:25.7]} 42. Bd6 {[%clk 0:00:55]} 42... Ke6 {[%clk 0:00:24.9]} 43. Ba3 {[%clk
0:00:55]} 43... a4 {[%clk 0:00:25.2]} 44. Bb4 {[%clk 0:00:51.7]} 44... Kf7
{[%clk 0:00:25.2]} 45. Kf2 {[%clk 0:00:41.5]} 45... Ke6 {[%clk 0:00:24.5]} 46.
Kg3 {[%clk 0:00:41.2]} 46... Bc2 {[%clk 0:00:23]} 47. Ba3 {[%clk 0:00:33.2]}
47... Kf7 {[%clk 0:00:21.5]} 48. Bc1 {[%clk 0:00:29]} 48... Kg6 {[%clk
0:00:21.5]} 49. Kf2 {[%clk 0:00:28.5]} 49... Kf6 {[%clk 0:00:20.6]} 50. Ke3
{[%clk 0:00:28.8]} 50... Bd1 {[%clk 0:00:21]} 51. Bb2+ {[%clk 0:00:28.8]} 51...
Ke6 {[%clk 0:00:20]} 52. Kf2 {[%clk 0:00:26.1]} 52... Kf7 {[%clk 0:00:18.3]} 53.
Ba1 {[%clk 0:00:22.8]} 53... Ke6 {[%clk 0:00:17.6]} 54. Bb2 {[%clk 0:00:22.7]}
54... Kf7 {[%clk 0:00:17.8]} 55. Ke3 {[%clk 0:00:23.1]} 55... Ke6 {[%clk
0:00:15.8]} 56. f4 {[%clk 0:00:22.6]} 56... Bxg4 {[%clk 0:00:15.1]} 57. fxg5
{[%clk 0:00:22.9]} 57... Bh5 {[%clk 0:00:12.2]} 58. Kf4 {[%clk 0:00:22.9]} 58...
Bg6 {[%clk 0:00:12.5]} 59. e5 {[%clk 0:00:20.4]} 59... Bh7 {[%clk 0:00:12.3]}
60. Kg4 {[%clk 0:00:18.1]} 60... Bg6 {[%clk 0:00:12.2]} 61. Kf4 {[%clk
0:00:18.6]} 61... Bh7 {[%clk 0:00:11.7]} 62. Kg4 {[%clk 0:00:19.1]} 62... Bg6
{[%clk 0:00:12.1]} 63. Kh4 {[%clk 0:00:19.6]} 63... Kf5 {[%clk 0:00:11.7]} 64.
Ba1 {[%clk 0:00:19.9]} 64... Bf7 {[%clk 0:00:11.5]} 65. Bb2 {[%clk 0:00:20.3]}
65... Bg6 {[%clk 0:00:12]} 66. Ba1 {[%clk 0:00:17.9]} 66... a3 {[%clk 0:00:12]}
67. Kg3 {[%clk 0:00:17.8]} 67... Kxg5 {[%clk 0:00:10.2]} 68. e6 {[%clk 0:00:17]}
68... Kf5 {[%clk 0:00:09.6]} 69. e7 {[%clk 0:00:17.1]} 69... Be8 {[%clk
0:00:09.6]} 70. Kf2 {[%clk 0:00:17.2]} 70... a2 {[%clk 0:00:09.3]} 71. Ke3
{[%clk 0:00:17.4]} 71... Ke6 {[%clk 0:00:09.7]} 72. Kd2 {[%clk 0:00:17.1]} 72...
Kxe7 {[%clk 0:00:10.1]} 73. Kc1 {[%clk 0:00:17.1]} 73... Ke6 {[%clk 0:00:10.7]}
74. Bc3 {[%clk 0:00:17.5]} 74... Bg6 {[%clk 0:00:11.2]} 75. Kb2 {[%clk
0:00:18.1]} 75... a1=Q+ {[%clk 0:00:11.4]} 76. Kxa1 {[%clk 0:00:19]} 1/2-1/2

[Event "Early-Titled-Tuesday-Blitz-September-12-2023"]
[Site "Chess.com"]
[Date "2023.09.12"]
[Round "1"]
[White "MITerryble"]
[Black "KingCyber19"]
[Result "1-0"]
[WhiteElo "2927"]
[BlackElo "2510"]
[TimeControl "180+1"]
[EndTime "8:08:42 PDT"]
[Termination "MITerryble won by resignation"]

1. d4 {[%clk 0:02:59.5]} 1... d5 {[%clk 0:02:59.8]} 2. Nf3 {[%clk 0:02:42.1]}
2... Nf6 {[%clk 0:02:58.4]} 3. c4 {[%clk 0:02:42.4]} 3... c6 {[%clk 0:02:56.1]}
4. Nc3 {[%clk 0:02:41.7]} 4... e6 {[%clk 0:02:56.4]} 5. Bg5 {[%clk 0:02:41.2]}
5... Nbd7 {[%clk 0:02:52.8]} 6. e3 {[%clk 0:02:40.9]} 6... Qa5 {[%clk
0:02:48.2]} 7. Bxf6 {[%clk 0:02:38.8]} 7... Nxf6 {[%clk 0:02:48.1]} 8. Nd2
{[%clk 0:02:39.7]} 8... Bb4 {[%clk 0:02:43.9]} 9. Qc2 {[%clk 0:02:39.1]} 9...
O-O {[%clk 0:02:41.9]} 10. Bd3 {[%clk 0:02:36.6]} 10... Bxc3 {[%clk 0:02:40.5]}
11. bxc3 {[%clk 0:02:35]} 11... Re8 {[%clk 0:02:37.1]} 12. O-O {[%clk
0:02:30.3]} 12... e5 {[%clk 0:02:33.8]} 13. cxd5 {[%clk 0:02:30.1]} 13... cxd5
{[%clk 0:02:32.4]} 14. Rab1 {[%clk 0:02:21.5]} 14... e4 {[%clk 0:02:27.5]} 15.
Be2 {[%clk 0:02:21.3]} 15... Qc7 {[%clk 0:02:23.4]} 16. Rfc1 {[%clk 0:02:11.1]}
16... Bg4 {[%clk 0:02:13.2]} 17. Bf1 {[%clk 0:02:02]} 17... Be6 {[%clk
0:02:07.6]} 18. h3 {[%clk 0:01:58.3]} 18... Rac8 {[%clk 0:02:04.4]} 19. c4
{[%clk 0:01:47.8]} 19... dxc4 {[%clk 0:02:03.9]} 20. Bxc4 {[%clk 0:01:48]} 20...
Bxc4 {[%clk 0:01:47.7]} 21. Nxc4 {[%clk 0:01:47]} 21... a6 {[%clk 0:01:31.7]}
22. a4 {[%clk 0:01:40.8]} 22... Re6 {[%clk 0:01:28]} 23. d5 {[%clk 0:01:10.5]}
23... Nxd5 {[%clk 0:01:27.9]} 24. Qd2 {[%clk 0:01:10.8]} 24... Rc6 {[%clk
0:01:23.9]} 25. Qxd5 {[%clk 0:01:10.1]} 25... Rxc4 {[%clk 0:01:23.9]} 26. Rxc4
{[%clk 0:01:07]} 26... Qxc4 {[%clk 0:01:24.8]} 27. Qxb7 {[%clk 0:01:07.7]} 27...
h6 {[%clk 0:01:21]} 28. a5 {[%clk 0:01:05.8]} 28... Rd8 {[%clk 0:00:38.6]} 29.
Rb6 {[%clk 0:00:39.4]} 29... Rd1+ {[%clk 0:00:20.5]} 30. Kh2 {[%clk 0:00:39]}
30... Rd2 {[%clk 0:00:18.1]} 31. Qb8+ {[%clk 0:00:35.6]} 31... Kh7 {[%clk
0:00:18]} 32. Qf4 {[%clk 0:00:36.5]} 32... Qd5 {[%clk 0:00:03.2]} 33. Rxa6
{[%clk 0:00:33.6]} 33... Ra2 {[%clk 0:00:03.8]} 34. Ra7 {[%clk 0:00:33.3]} 34...
Kg8 {[%clk 0:00:02.8]} 35. a6 {[%clk 0:00:33.1]} 35... Qe6 {[%clk 0:00:02.4]}
36. Ra8+ {[%clk 0:00:27.5]} 36... Kh7 {[%clk 0:00:03]} 37. a7 {[%clk 0:00:27.9]}
37... Qd7 {[%clk 0:00:02.4]} 38. Qxe4+ {[%clk 0:00:22.7]} 38... f5 {[%clk
0:00:03]} 39. Qd4 {[%clk 0:00:21.2]} 39... Qc7+ {[%clk 0:00:02.7]} 40. Qf4
{[%clk 0:00:21.8]} 40... Qd7 {[%clk 0:00:02.3]} 41. Rf8 {[%clk 0:00:20.1]} 41...
Rxa7 {[%clk 0:00:01.6]} 42. Qxf5+ {[%clk 0:00:20.6]} 42... Qxf5 {[%clk
0:00:02.3]} 43. Rxf5 {[%clk 0:00:21.5]} 43... Kg6 {[%clk 0:00:03.1]} 44. Rf4
{[%clk 0:00:21.8]} 44... Ra5 {[%clk 0:00:03.7]} 45. Kg3 {[%clk 0:00:22.3]} 45...
h5 {[%clk 0:00:04]} 46. h4 {[%clk 0:00:22.3]} 46... Kh6 {[%clk 0:00:04.9]} 47.
Kf3 {[%clk 0:00:22.7]} 47... g6 {[%clk 0:00:05.6]} 48. Rf7 {[%clk 0:00:22.3]}
48... Ra2 {[%clk 0:00:06.5]} 49. g3 {[%clk 0:00:20.8]} 49... Ra8 {[%clk
0:00:07.4]} 50. e4 {[%clk 0:00:20.3]} 50... Re8 {[%clk 0:00:08.3]} 51. Kf4
{[%clk 0:00:20.2]} 51... Re6 {[%clk 0:00:09.2]} 52. f3 {[%clk 0:00:19]} 52...
Rd6 {[%clk 0:00:08.6]} 53. Rc7 {[%clk 0:00:18.9]} 53... Rf6+ {[%clk 0:00:08.6]}
54. Ke3 {[%clk 0:00:18.9]} 54... Re6 {[%clk 0:00:08.4]} 55. Rc3 {[%clk
0:00:12.8]} 55... Kg7 {[%clk 0:00:07.4]} 56. Kd4 {[%clk 0:00:13.1]} 56... Kf6
{[%clk 0:00:07.9]} 57. f4 {[%clk 0:00:12.7]} 57... Rd6+ {[%clk 0:00:08.5]} 58.
Ke3 {[%clk 0:00:12.9]} 58... Rd1 {[%clk 0:00:08.9]} 59. Rd3 {[%clk 0:00:12.4]}
59... Re1+ {[%clk 0:00:09]} 60. Kd4 {[%clk 0:00:13.3]} 60... Ke6 {[%clk
0:00:07.9]} 61. Rb3 {[%clk 0:00:13.1]} 61... Rd1+ {[%clk 0:00:08.1]} 62. Ke3
{[%clk 0:00:13.7]} 62... Rd6 {[%clk 0:00:07.4]} 63. Rb5 {[%clk 0:00:13.1]} 63...
Rc6 {[%clk 0:00:07.6]} 64. f5+ {[%clk 0:00:13.3]} 64... gxf5 {[%clk 0:00:07.6]}
65. Rxf5 {[%clk 0:00:14.2]} 65... Rc3+ {[%clk 0:00:07.3]} 66. Kf4 {[%clk
0:00:14.7]} 66... Rc1 {[%clk 0:00:07.6]} 67. Rxh5 {[%clk 0:00:14.8]} 67... Rf1+
{[%clk 0:00:08.5]} 68. Kg4 {[%clk 0:00:15.3]} 68... Rf8 {[%clk 0:00:08.9]} 69.
Rf5 {[%clk 0:00:14.6]} 69... Rg8+ {[%clk 0:00:09.4]} 70. Kf4 {[%clk 0:00:15.2]}
70... Rh8 {[%clk 0:00:10.3]} 71. h5 {[%clk 0:00:15.7]} 71... Rh6 {[%clk
0:00:10.2]} 72. g4 {[%clk 0:00:16]} 72... Rh7 {[%clk 0:00:11.1]} 73. Re5+ {[%clk
0:00:16.2]} 73... Kf6 {[%clk 0:00:11.1]} 74. Ra5 {[%clk 0:00:17.1]} 74... Kg7
{[%clk 0:00:12]} 75. Ra7+ {[%clk 0:00:16.9]} 75... Kh6 {[%clk 0:00:12.9]} 76.
Rxh7+ {[%clk 0:00:17.4]} 76... Kxh7 {[%clk 0:00:13.8]} 77. g5 {[%clk 0:00:17.8]}
1-0

[Event "Early-Titled-Tuesday-Blitz-September-12-2023"]
[Site "Chess.com"]
[Date "2023.09.12"]
[Round "1"]
[White "Dr_crypt"]
[Black "WaybackBoy"]
[Result "0-1"]
[WhiteElo "2405"]
[BlackElo "2717"]
[TimeControl "180+1"]
[EndTime "8:08:45 PDT"]
[Termination "WaybackBoy won by checkmate"]

1. d4 {[%clk 0:02:57.8]} 1... Nf6 {[%clk 0:02:59.9]} 2. Nf3 {[%clk 0:02:57.9]}
2... g6 {[%clk 0:03:00.1]} 3. c4 {[%clk 0:02:58.2]} 3... Bg7 {[%clk 0:03:00.4]}
4. Nc3 {[%clk 0:02:58.5]} 4... O-O {[%clk 0:03:00.7]} 5. e4 {[%clk 0:02:58.8]}
5... d6 {[%clk 0:03:01.3]} 6. h3 {[%clk 0:02:58.2]} 6... c5 {[%clk 0:02:53.8]}
7. Be3 {[%clk 0:02:57.1]} 7... Qa5 {[%clk 0:02:50]} 8. Qd2 {[%clk 0:02:54.4]}
8... cxd4 {[%clk 0:02:36.9]} 9. Nxd4 {[%clk 0:02:53.5]} 9... Nc6 {[%clk
0:02:36.8]} 10. Be2 {[%clk 0:02:50.7]} 10... Nxd4 {[%clk 0:02:36.7]} 11. Bxd4
{[%clk 0:02:50.1]} 11... Bd7 {[%clk 0:02:36.4]} 12. Bxf6 {[%clk 0:02:39.6]}
12... Bxf6 {[%clk 0:02:35.5]} 13. Rc1 {[%clk 0:02:39]} 13... Bg5 {[%clk
0:02:27.7]} 14. f4 {[%clk 0:02:36]} 14... Bh4+ {[%clk 0:02:27.8]} 15. Kf1 {[%clk
0:02:35.7]} 15... Qc5 {[%clk 0:02:20.9]} 16. Nd1 {[%clk 0:02:17]} 16... Bc6
{[%clk 0:02:12.3]} 17. Bf3 {[%clk 0:02:15.1]} 17... f5 {[%clk 0:02:09]} 18. b4
{[%clk 0:01:56.5]} 18... Qb6 {[%clk 0:02:09]} 19. c5 {[%clk 0:01:51.9]} 19...
dxc5 {[%clk 0:02:08]} 20. bxc5 {[%clk 0:01:51.7]} 20... Qa6+ {[%clk 0:02:02.5]}
21. Be2 {[%clk 0:01:50.8]} 21... Qa3 {[%clk 0:02:01.1]} 22. Rc3 {[%clk
0:01:16.5]} 22... Qb4 {[%clk 0:02:00.3]} 23. e5 {[%clk 0:00:34.4]} 23... Rad8
{[%clk 0:01:51.7]} 24. Qc1 {[%clk 0:00:35]} 24... Rd4 {[%clk 0:01:33.1]} 25. Kg1
{[%clk 0:00:24.8]} 25... Rxf4 {[%clk 0:01:30.6]} 26. g3 {[%clk 0:00:25.3]} 26...
Qd4+ {[%clk 0:01:28.5]} 27. Qe3 {[%clk 0:00:20.6]} 27... Bxh1 {[%clk 0:00:53.4]}
28. gxf4 {[%clk 0:00:13.9]} 28... Qxe3+ {[%clk 0:00:48.3]} 29. Nxe3 {[%clk
0:00:13.8]} 29... Bc6 {[%clk 0:00:43.8]} 30. Ng2 {[%clk 0:00:10.8]} 30... g5
{[%clk 0:00:23.7]} 31. Nxh4 {[%clk 0:00:10.3]} 31... gxh4 {[%clk 0:00:24.6]} 32.
Bc4+ {[%clk 0:00:08.5]} 32... Kg7 {[%clk 0:00:25]} 33. Rd3 {[%clk 0:00:07.8]}
33... Kh6 {[%clk 0:00:18.2]} 34. Kf2 {[%clk 0:00:08.1]} 34... Rc8 {[%clk
0:00:16]} 35. Bd5 {[%clk 0:00:08.2]} 35... Bb5 {[%clk 0:00:15]} 36. Rc3 {[%clk
0:00:08.8]} 36... Rc7 {[%clk 0:00:14.3]} 37. a4 {[%clk 0:00:07.9]} 37... Bxa4
{[%clk 0:00:12.7]} 38. Ra3 {[%clk 0:00:08.8]} 38... Rxc5 {[%clk 0:00:13.3]} 39.
Rxa4 {[%clk 0:00:09.1]} 39... Rxd5 {[%clk 0:00:13.4]} 40. Rxa7 {[%clk 0:00:10]}
40... Rb5 {[%clk 0:00:13.7]} 41. Ra8 {[%clk 0:00:06.9]} 41... Rb3 {[%clk
0:00:13.6]} 42. Re8 {[%clk 0:00:06.3]} 42... Rb4 {[%clk 0:00:05.6]} 43. Kf3
{[%clk 0:00:06]} 43... Rb3+ {[%clk 0:00:06.2]} 44. Kf2 {[%clk 0:00:06.2]} 44...
Rxh3 {[%clk 0:00:05.4]} 45. Rxe7 {[%clk 0:00:06.4]} 45... b5 {[%clk 0:00:06]}
46. Re6+ {[%clk 0:00:05.1]} 46... Kh5 {[%clk 0:00:06.5]} 47. Rb6 {[%clk
0:00:04.1]} 47... Kg4 {[%clk 0:00:04.6]} 48. e6 {[%clk 0:00:04.4]} 48... Kxf4
{[%clk 0:00:04.3]} 49. e7 {[%clk 0:00:04.5]} 49... Re3 {[%clk 0:00:03.9]} 50.
Rxb5 {[%clk 0:00:02]} 50... Rxe7 {[%clk 0:00:04.2]} 51. Rb4+ {[%clk 0:00:02.9]}
51... Re4 {[%clk 0:00:04.6]} 52. Rb7 {[%clk 0:00:03.2]} 52... h5 {[%clk
0:00:05.1]} 53. Rb3 {[%clk 0:00:02.9]} 53... Kg4 {[%clk 0:00:05.2]} 54. Rb8
{[%clk 0:00:03.3]} 54... Rf4+ {[%clk 0:00:05.7]} 55. Kg2 {[%clk 0:00:03]} 55...
h3+ {[%clk 0:00:06.2]} 56. Kh2 {[%clk 0:00:03.9]} 56... Rf2+ {[%clk 0:00:06.7]}
57. Kg1 {[%clk 0:00:04]} 57... Rg2+ {[%clk 0:00:07.3]} 58. Kh1 {[%clk
0:00:04.8]} 58... Rc2 {[%clk 0:00:08.1]} 59. Rb4+ {[%clk 0:00:02.3]} 59... f4
{[%clk 0:00:07.8]} 60. Rb3 {[%clk 0:00:02]} 60... h4 {[%clk 0:00:07.5]} 61. Ra3
{[%clk 0:00:02]} 61... Re2 {[%clk 0:00:07.1]} 62. Rb3 {[%clk 0:00:02.4]} 62...
Re3 {[%clk 0:00:07.5]} 63. Rb2 {[%clk 0:00:02.7]} 63... Kg3 {[%clk 0:00:07.9]}
64. Kg1 {[%clk 0:00:02.7]} 64... Re1# {[%clk 0:00:04.9]} 0-1

[Event "Early-Titled-Tuesday-Blitz-September-12-2023"]
[Site "Chess.com"]
[Date "2023.09.12"]
[Round "1"]
[White "HanSchut"]
[Black "Dixit_Nikhil"]
[Result "0-1"]
[WhiteElo "2253"]
[BlackElo "2574"]
[TimeControl "180+1"]
[EndTime "8:08:46 PDT"]
[Termination "Dixit_Nikhil won by resignation"]

1. e4 {[%clk 0:02:59.6]} 1... Nc6 {[%clk 0:02:46.5]} 2. Nf3 {[%clk 0:02:58.6]}
2... d6 {[%clk 0:02:37.5]} 3. Bc4 {[%clk 0:02:46.9]} 3... Nf6 {[%clk 0:02:31.8]}
4. Nc3 {[%clk 0:02:46.1]} 4... g6 {[%clk 0:02:10.6]} 5. h3 {[%clk 0:02:45]} 5...
Bg7 {[%clk 0:02:02.3]} 6. d4 {[%clk 0:02:44.5]} 6... O-O {[%clk 0:01:58.7]} 7.
Be3 {[%clk 0:02:42.4]} 7... a6 {[%clk 0:01:40.6]} 8. Qd2 {[%clk 0:02:24.1]} 8...
b5 {[%clk 0:01:32.4]} 9. Bd5 {[%clk 0:02:23.4]} 9... Nxd5 {[%clk 0:01:31.9]} 10.
exd5 {[%clk 0:02:22.5]} 10... Na5 {[%clk 0:01:30.9]} 11. b3 {[%clk 0:02:20.3]}
11... c6 {[%clk 0:01:25.6]} 12. O-O {[%clk 0:02:18.2]} 12... cxd5 {[%clk
0:01:22]} 13. Nxd5 {[%clk 0:02:17.7]} 13... Nc6 {[%clk 0:01:22.6]} 14. a4 {[%clk
0:02:10.3]} 14... Bb7 {[%clk 0:01:08.4]} 15. axb5 {[%clk 0:02:02.7]} 15... axb5
{[%clk 0:01:09.3]} 16. Rxa8 {[%clk 0:02:01.9]} 16... Bxa8 {[%clk 0:01:10.2]} 17.
c4 {[%clk 0:01:53.8]} 17... bxc4 {[%clk 0:01:00.5]} 18. bxc4 {[%clk 0:01:54.7]}
18... e6 {[%clk 0:00:58.6]} 19. Nc3 {[%clk 0:01:48.2]} 19... Ne7 {[%clk
0:00:58.7]} 20. Ne1 {[%clk 0:01:22.7]} 20... Qd7 {[%clk 0:00:50.2]} 21. Nd3
{[%clk 0:01:17.5]} 21... Nf5 {[%clk 0:00:46.2]} 22. Rc1 {[%clk 0:01:11.7]} 22...
Nh4 {[%clk 0:00:43.9]} 23. Ne1 {[%clk 0:01:08.6]} 23... Rc8 {[%clk 0:00:41.7]}
24. Nb5 {[%clk 0:00:52.1]} 24... Bxg2 {[%clk 0:00:34.8]} 25. Qb4 {[%clk
0:00:44.5]} 25... Bf8 {[%clk 0:00:25.6]} 26. Nxg2 {[%clk 0:00:41.8]} 26... Nf3+
{[%clk 0:00:26]} 27. Kf1 {[%clk 0:00:36.2]} 27... e5 {[%clk 0:00:26.5]} 28. d5
{[%clk 0:00:33]} 28... Qxh3 {[%clk 0:00:26.4]} 29. Na7 {[%clk 0:00:19.3]} 29...
Ra8 {[%clk 0:00:23.5]} 30. Qb7 {[%clk 0:00:12.9]} 30... Rxa7 {[%clk 0:00:21.9]}
31. Qxa7 {[%clk 0:00:13.6]} 31... Qh1+ {[%clk 0:00:21.6]} 32. Ke2 {[%clk
0:00:14]} 32... Qxg2 {[%clk 0:00:22.5]} 33. c5 {[%clk 0:00:11.2]} 33... Qg4
{[%clk 0:00:22.5]} 34. Qb8 {[%clk 0:00:12.1]} 34... Nd4+ {[%clk 0:00:20.8]} 35.
Kd3 {[%clk 0:00:12.9]} 35... Qe2+ {[%clk 0:00:20.6]} 36. Kc3 {[%clk 0:00:11.7]}
36... dxc5 {[%clk 0:00:17.6]} 37. Bxd4 {[%clk 0:00:12.1]} 37... exd4+ {[%clk
0:00:15.4]} 38. Kb3 {[%clk 0:00:12.6]} 38... d3 {[%clk 0:00:15.8]} 39. Qb5
{[%clk 0:00:08.7]} 39... Qe4 {[%clk 0:00:14.1]} 40. Rd1 {[%clk 0:00:07.7]} 40...
Qxd5+ {[%clk 0:00:13.7]} 41. Qc4 {[%clk 0:00:08.4]} 41... Qf5 {[%clk 0:00:14]}
42. Rxd3 {[%clk 0:00:08.8]} 42... Qxf2 {[%clk 0:00:14.2]} 43. Rd8 {[%clk
0:00:09.3]} 43... Qf6 {[%clk 0:00:13.3]} 44. Rc8 {[%clk 0:00:07.8]} 44... Qe6
{[%clk 0:00:13.4]} 45. Qxe6 {[%clk 0:00:07.8]} 45... fxe6 {[%clk 0:00:14.3]} 46.
Kc4 {[%clk 0:00:08.7]} 46... Kf7 {[%clk 0:00:14.3]} 47. Rc7+ {[%clk 0:00:09.2]}
47... Be7 {[%clk 0:00:14.2]} 48. Kd3 {[%clk 0:00:08.6]} 48... h5 {[%clk
0:00:14.7]} 49. Ke4 {[%clk 0:00:09.5]} 49... h4 {[%clk 0:00:15.3]} 50. Kf4
{[%clk 0:00:10.4]} 50... g5+ {[%clk 0:00:15.4]} 51. Kg4 {[%clk 0:00:11.2]} 51...
Kf6 {[%clk 0:00:15.5]} 52. Rc6 {[%clk 0:00:11.6]} 52... Ke5 {[%clk 0:00:15.4]}
53. Rc8 {[%clk 0:00:11.7]} 53... Kd5 {[%clk 0:00:14.8]} 54. Re8 {[%clk
0:00:12.1]} 54... Bd6 {[%clk 0:00:15.1]} 55. Kxg5 {[%clk 0:00:12.2]} 55... h3
{[%clk 0:00:15.6]} 56. Rh8 {[%clk 0:00:12.3]} 56... h2 {[%clk 0:00:16.3]} 57.
Kg4 {[%clk 0:00:13.1]} 57... c4 {[%clk 0:00:16.6]} 58. Kf3 {[%clk 0:00:14]}
58... c3 {[%clk 0:00:16.9]} 59. Ke2 {[%clk 0:00:14.9]} 59... Kd4 {[%clk
0:00:13.2]} 60. Rh4+ {[%clk 0:00:14.2]} 60... Kd5 {[%clk 0:00:11.3]} 61. Kd3
{[%clk 0:00:15.1]} 61... Be5 {[%clk 0:00:11.9]} 62. Kc2 {[%clk 0:00:12.9]} 62...
Kd6 {[%clk 0:00:11.6]} 63. Kd3 {[%clk 0:00:13.3]} 63... Ke7 {[%clk 0:00:12]} 64.
Kc2 {[%clk 0:00:13.6]} 64... Kf6 {[%clk 0:00:12.4]} 65. Kd3 {[%clk 0:00:13.9]}
65... Kg5 {[%clk 0:00:12.6]} 66. Rh7 {[%clk 0:00:13.7]} 66... Kg4 {[%clk
0:00:12.6]} 67. Ke4 {[%clk 0:00:13.6]} 67... c2 {[%clk 0:00:12.6]} 0-1